lending/lending_fUSD_20260306
["ID","MTS","AMOUNT","RATE_DAILY","PERIOD"]
[407784769,1772797884939,-199.82750225,0.00044601,14]
[407784770,1772797884950,-150.0,0.00044605,30]
[407784771,1772797884964,-159.49661076,0.00044607,30]
[407784772,1772797884975,-178.56416906,0.00044607,30]
[407784773,1772797884987,-237.39121081,0.00044607,30]
[407784774,1772797885003,-259.39398879,0.00044607,30]
[407784775,1772797885014,-496.10721813,0.00044607,30]
[407784776,1772797885024,-196.401106,0.00044607,30]
[407784777,1772797885036,-1449.54535138,0.00044627,30]
[407784778,1772797885047,-150.0,0.00044647,30]
[407784779,1772797885057,-159.49661076,0.00044654,30]
[407784780,1772797885068,-178.56416906,0.00044654,30]
[407784781,1772797885077,-237.39121081,0.00044654,30]
[407784782,1772797885087,-259.39398879,0.00044654,30]
[407784783,1772797885097,-496.10721813,0.00044654,30]
[407784784,1772797885107,-196.401106,0.00044654,30]
[407784785,1772797885116,-689.2245228,0.00044657,120]
[407784786,1772797885127,-746.0,0.00044658,120]
[407784787,1772797885136,-500.0,0.00044658,120]
[407784788,1772797885146,-162.11,0.00044658,120]
[407784789,1772797885156,-150.0,0.00044661,30]
[407784790,1772797885166,-150.0,0.00044683,30]
[407784791,1772797885176,-150.0,0.00044689,30]
[407784792,1772797885186,-150.0,0.00044697,30]
[407784793,1772797885196,-155.78413789,0.00044698,2]
[407784794,1772797885207,-159.49661076,0.00044702,30]
[407784795,1772797885218,-178.56416906,0.00044702,30]
[407784796,1772797885228,-237.39121081,0.00044702,30]
[407784797,1772797885241,-259.39398879,0.00044702,30]
[407784798,1772797885251,-496.10721813,0.00044702,30]
[407784799,1772797885260,-196.401106,0.00044702,30]
[407784800,1772797885270,-150.0,0.0004471,30]
[407784801,1772797885281,-150.0,0.0004471,30]
[407784802,1772797885291,-245.37276384,0.00044728,7]
[407784803,1772797885302,-1042.7,0.0004473,120]
[407784804,1772797885313,-825.0,0.00044741,120]
[407784805,1772797885325,-150.0,0.00044748,30]
[407784806,1772797885336,-159.49661076,0.0004475,30]
[407784807,1772797885346,-178.56416906,0.0004475,30]
[407784808,1772797885355,-237.39121081,0.0004475,30]
[407784809,1772797885365,-259.39398879,0.0004475,30]
[407784810,1772797885375,-496.10721813,0.0004475,30]
[407784811,1772797885385,-196.401106,0.0004475,30]
[407784812,1772797885395,-162.11,0.00044758,120]
[407784813,1772797885405,-5026.57882922,0.00044774,13]
[407784814,1772797885414,-5000.0,0.00044774,13]
[407784815,1772797885424,-5000.0,0.00044774,19]
[407784816,1772797885435,-2001.1457,0.00044774,4]
[407784817,1772797885444,-10000.0,0.00044774,4]
[407784818,1772797885454,-4786.8317,0.00044774,4]
[407784819,1772797885464,-150.0,0.00044774,30]
[407784820,1772797885475,-150.0,0.00044774,30]
[407784821,1772797885484,-150.0,0.00044774,30]
[407784822,1772797885494,-150.0,0.00044774,30]
[407784823,1772797885504,-150.0,0.00044774,30]
[407784824,1772797885514,-4810.256,0.00044775,30]
[407784825,1772797885523,-602.14594562,0.0004478,30]
[407784826,1772797885533,-159.49661076,0.00044797,30]
[407784827,1772797885543,-178.56416906,0.00044797,30]
[407784828,1772797885554,-237.39121081,0.00044797,30]
[407784829,1772797885563,-259.39398879,0.00044797,30]
[407784830,1772797885573,-496.10721813,0.00044797,30]
[407784831,1772797885583,-196.401106,0.00044797,30]
[407784832,1772797885593,-150.0,0.00044799,30]
[407784833,1772797885604,-976.64012655,0.000448,120]
[407784834,1772797885614,-845.4016605,0.00044817,30]
[407784835,1772797885625,-150.0,0.00044837,30]
[407784836,1772797885637,-150.0,0.00044837,30]
[407784837,1772797885647,-159.49661076,0.00044845,30]
[407784838,1772797885912,-178.56416906,0.00044845,30]
[407784839,1772797885924,-237.39121081,0.00044845,30]
[407784840,1772797885934,-259.39398879,0.00044845,30]
[407784841,1772797885945,-496.10721813,0.00044845,30]
[407784842,1772797885955,-196.401106,0.00044845,30]
[407784843,1772797885967,-150.0,0.0004485,30]
[407784844,1772797885977,-150.0,0.00044858,30]
[407784845,1772797885987,-162.11,0.00044858,120]
[407784846,1772797885997,-150.0,0.00044864,30]
[407784847,1772797886007,-150.0,0.00044886,30]
[407784848,1772797886017,-565.35313634,0.0004489,120]
[407784849,1772797886027,-159.49661076,0.00044893,30]
[407784850,1772797886037,-178.56416906,0.00044893,30]
[407784851,1772797886049,-237.39121081,0.00044893,30]
[407784852,1772797886059,-259.39398879,0.00044893,30]
[407784853,1772797886068,-496.10721813,0.00044893,30]
[407784854,1772797886077,-196.401106,0.00044893,30]
[407784855,1772797886087,-151.5,0.00044895,60]
[407784856,1772797886096,-599.165,0.000449,90]
[407784857,1772797886107,-2453.626,0.000449,90]
[407784858,1772797886118,-2453.626,0.000449,90]
[407784859,1772797886129,-2453.62,0.000449,90]
[407784860,1772797886139,-10999.72440593,0.000449,7]
[407784861,1772797886147,-414.04190976,0.000449,30]
[407784862,1772797886157,-181218.86781255,0.000449,30]
[407784863,1772797886167,-150.0,0.000449,30]
[407784864,1772797886176,-150.0,0.00044931,120]
[407784865,1772797886185,-746.0,0.00044932,120]
[407784866,1772797886195,-566.72974495,0.00044932,10]
[407784867,1772797886204,-500.0,0.00044932,120]
[407784868,1772797886213,-3000.0,0.00044938,60]
[407784869,1772797886223,-159.49661076,0.0004494,30]
[407784870,1772797886232,-178.56416906,0.0004494,30]
[407784871,1772797886241,-237.39121081,0.0004494,30]
[407784872,1772797886251,-259.39398879,0.0004494,30]
[407784873,1772797886260,-496.10721813,0.0004494,30]
[407784874,1772797886270,-196.401106,0.0004494,30]
[407784875,1772797886280,-150.0,0.00044942,30]
[407784876,1772797886290,-150.0,0.00044951,30]
[407784877,1772797886300,-150.0,0.00044955,30]
[407784878,1772797886309,-162.11,0.00044958,120]
[407784879,1772797886318,-214.0,0.0004496,30]
[407784880,1772797886328,-150.0,0.00044965,30]
[407784881,1772797886337,-150.0,0.00044965,30]
[407784882,1772797886347,-155.78413789,0.00044972,2]
[407784883,1772797886356,-150.0,0.00044975,120]
[407784884,1772797886366,-159.49661076,0.00044988,30]
[407784885,1772797886376,-178.56416906,0.00044988,30]
[407784886,1772797886385,-237.39121081,0.00044988,30]
[407784887,1772797886395,-259.39398879,0.00044988,30]
[407784888,1772797886404,-496.10721813,0.00044988,30]
[407784889,1772797886413,-196.401106,0.00044988,30]
[407784890,1772797886422,-150.0,0.00044989,120]
[407784891,1772797886431,-150.0,0.00044993,120]
[407784892,1772797886443,-150.0,0.00044998,30]
[407784893,1772797886453,-500.0,0.00044999,120]
[407784894,1772797886463,-775.8,0.00044999,120]
[407784895,1772797886474,-500.0,0.00044999,120]
[407784896,1772797886484,-500.0,0.00044999,120]
[407784897,1772797886495,-44611.65785937,0.00044999,10]
[407784898,1772797886505,-600.0,0.00045,120]
[407784899,1772797886516,-358.0,0.00045,120]
[407784900,1772797886527,-357.0,0.00045,120]
[407784901,1772797886538,-607.23072195,0.00045,120]
[407784902,1772797886554,-718.04490722,0.00045,120]
[407784903,1772797886564,-814.49038102,0.00045,120]
[407784904,1772797886576,-1110.1019066,0.00045,120]
[407784905,1772797886587,-2452.97073453,0.00045,14]
[407784906,1772797886597,-232.77597632,0.00045,120]
[407784907,1772797886607,-554.43157938,0.00045,120]
[407784908,1772797886617,-588.55844437,0.00045,120]
[407784909,1772797886626,-261.34952125,0.00045,120]
[407784910,1772797886636,-190.36145104,0.00045,120]
[407784911,1772797886646,-981.21909876,0.00045,120]
[407784912,1772797886656,-152.61000832,0.00045,30]
[407784913,1772797886665,-428.03490177,0.00045,120]
[407784914,1772797886674,-609.95621908,0.00045,10]
[407784915,1772797886684,-347.46688714,0.00045,120]
[407784916,1772797886693,-1032.84294368,0.00045,120]
[407784917,1772797886702,-403.0880336,0.00045,120]
[407784918,1772797886711,-198.16105412,0.00045,10]
[407784919,1772797886720,-160.3,0.00045,120]
[407784920,1772797886730,-550.0,0.00045,120]
[407784921,1772797886739,-2300.0,0.00045,120]
[407784922,1772797886749,-49175.9,0.00045,120]
[407784923,1772797886760,-500.0,0.00045,3]
[407784924,1772797886770,-500.0,0.00045,120]
[407784925,1772797886779,-14415.0,0.00045,30]
[407784926,1772797886789,-500.0,0.00045,120]
[407784927,1772797886800,-30577.44738434,0.00045,2]
[407784928,1772797886810,-10011.426801,0.00045,120]
[407784929,1772797886820,-1011.46,0.00045,120]
[407784930,1772797886830,-10000.0,0.00045,7]
[407784931,1772797886840,-599.999999,0.00045,120]
[407784932,1772797886849,-10600.80915993,0.00045,60]
[407784933,1772797886859,-150.0,0.00045,120]
[407784934,1772797886868,-351.64844837,0.00045,30]
[407784935,1772797886878,-16572.0,0.00045,120]
[407784936,1772797886887,-250.0,0.00045,120]
[407784937,1772797886897,-660.0,0.00045,120]
[407784938,1772797886907,-268.55944574,0.00045,120]
[407784939,1772797886916,-4170.0,0.00045,120]
[407784940,1772797886926,-9876.07948827,0.00045,120]
[407784941,1772797886936,-1063.97169079,0.00045,30]
[407784942,1772797886946,-103268.46777878,0.00045,120]
[407784943,1772797886958,-10017.0,0.00045,10]
[407784944,1772797886969,-500.0,0.00045,120]
[407784945,1772797886979,-162.22,0.00045,20]
[407784946,1772797886988,-1362.0,0.00045,120]
[407784947,1772797886998,-9329.0,0.00045,120]
[407784948,1772797887008,-2405.0,0.00045,120]
[407784949,1772797887018,-482.97353636,0.00045,30]
[407784950,1772797887027,-3233.0,0.00045,120]
[407784951,1772797887039,-2929.0,0.00045,120]
[407784952,1772797887049,-231.0,0.00045,30]
[407784953,1772797887059,-175.69729978,0.00045,13]
[407784954,1772797887068,-463.0,0.00045,30]
[407784955,1772797887077,-4078.0,0.00045,120]
[407784956,1772797887087,-4044.4248696,0.00045,120]
[407784957,1772797887097,-16338.72783808,0.00045,120]
[407784958,1772797887107,-210.0,0.00045,30]
[407784959,1772797887118,-1850.24772624,0.00045,120]
[407784960,1772797887130,-192.0,0.00045,30]
[407784961,1772797887140,-433.08,0.00045,120]
[407784962,1772797887149,-39531.27304862,0.00045,120]
[407784963,1772797887160,-157.999999,0.00045,120]
[407784964,1772797887170,-426.0,0.00045,30]
[407784965,1772797887181,-1068.28707978,0.00045,120]
[407784966,1772797887190,-299.0,0.00045,120]
[407784967,1772797887200,-6503.0,0.00045,120]
[407784968,1772797887210,-699.08,0.00045,120]
[407784969,1772797887219,-170.0,0.00045002,90]
[407784970,1772797887229,-150.0,0.00045002,30]
[407784971,1772797887239,-150.0,0.00045026,30]
[407784972,1772797887249,-159.49661076,0.00045035,30]
[407784973,1772797887259,-178.56416906,0.00045035,30]
[407784974,1772797887268,-237.39121081,0.00045035,30]
[407784975,1772797887278,-259.39398879,0.00045035,30]
[407784976,1772797887287,-496.10721813,0.00045035,30]
[407784977,1772797887297,-196.401106,0.00045035,30]
[407784978,1772797887306,-150.0,0.00045035,30]
[407784979,1772797887316,-150.0,0.0004504,120]
[407784980,1772797887326,-151.5,0.00045042,60]
[407784981,1772797887336,-150.0,0.00045045,30]
[407784982,1772797887347,-150.0,0.00045046,120]
[407784983,1772797887360,-150.0,0.00045052,30]
[407784984,1772797887372,-162.11,0.00045058,120]
[407784985,1772797887382,-150.0,0.00045068,30]
[407784986,1772797887391,-150.0,0.00045074,120]
[407784987,1772797887405,-159.49661076,0.00045083,30]
[407784988,1772797887416,-178.56416906,0.00045083,30]
[407784989,1772797887425,-237.39121081,0.00045083,30]
[407784990,1772797887435,-259.39398879,0.00045083,30]
[407784991,1772797887444,-496.10721813,0.00045083,30]
[407784992,1772797887453,-196.401106,0.00045083,30]
[407784993,1772797887463,-150.0,0.00045092,30]
[407784994,1772797887474,-150.0,0.00045092,30]
[407784995,1772797887484,-2000.0,0.000451,2]
[407784996,1772797887494,-150.0,0.00045103,30]
[407784997,1772797887504,-151.5,0.00045106,60]
[407784998,1772797887514,-150.0,0.0004511,30]
[407784999,1772797887524,-150.0,0.0004511,30]
[407785000,1772797887534,-151.5,0.00045118,60]
[407785001,1772797887544,-159.49661076,0.00045131,30]
[407785002,1772797887555,-178.56416906,0.00045131,30]
[407785003,1772797887565,-237.39121081,0.00045131,30]
[407785004,1772797887575,-259.39398879,0.00045131,30]
[407785005,1772797887584,-496.10721813,0.00045131,30]
[407785006,1772797887594,-196.401106,0.00045131,30]
[407785007,1772797887605,-150.0,0.00045136,30]
[407785008,1772797887615,-150.0,0.00045148,120]
[407785009,1772797887627,-150.0,0.00045154,30]
[407785010,1772797887637,-162.11,0.00045158,120]
[407785011,1772797887647,-159.49661076,0.00045178,30]
[407785012,1772797887658,-178.56416906,0.00045178,30]
[407785013,1772797887668,-237.39121081,0.00045178,30]
[407785014,1772797887677,-259.39398879,0.00045178,30]
[407785015,1772797887687,-496.10721813,0.00045178,30]
[407785016,1772797887697,-196.401106,0.00045178,30]
[407785017,1772797887708,-150.0,0.00045194,30]
[407785018,1772797887719,-150.0,0.00045204,30]
[407785019,1772797887729,-746.0,0.00045205,120]
[407785020,1772797887738,-500.0,0.00045205,120]
[407785021,1772797887748,-500.0,0.00045205,120]
[407785022,1772797887758,-500.0,0.00045205,120]
[407785023,1772797887770,-500.0,0.00045205,120]
[407785024,1772797887780,-500.0,0.00045206,120]
[407785025,1772797887790,-1200.0,0.00045212,60]
[407785026,1772797887800,-3000.0,0.00045212,60]
[407785027,1772797887810,-150.0,0.00045219,30]
[407785028,1772797887822,-150.0,0.00045219,30]
[407785029,1772797887831,-150.0,0.00045222,30]
[407785030,1772797887840,-159.49661076,0.00045226,30]
[407785031,1772797887850,-178.56416906,0.00045226,30]
[407785032,1772797887860,-237.39121081,0.00045226,30]
[407785033,1772797887870,-259.39398879,0.00045226,30]
[407785034,1772797887879,-496.10721813,0.00045226,30]
[407785035,1772797887889,-196.401106,0.00045226,30]
[407785036,1772797887898,-150.0,0.00045227,30]
[407785037,1772797887908,-155.78413789,0.00045246,2]
[407785038,1772797887918,-150.0,0.00045255,30]
[407785039,1772797887927,-162.11,0.00045258,120]
[407785040,1772797887937,-151.5,0.00045261,60]
[407785041,1772797887947,-159.49661076,0.00045273,30]
[407785042,1772797887960,-178.56416906,0.00045273,30]
[407785043,1772797887971,-237.39121081,0.00045273,30]
[407785044,1772797887982,-259.39398879,0.00045273,30]
[407785045,1772797887993,-496.10721813,0.00045273,30]
[407785046,1772797888005,-196.401106,0.00045273,30]
[407785047,1772797888016,-150.0,0.00045278,30]
[407785048,1772797888026,-151.0,0.000453,120]
[407785049,1772797888041,-150.0,0.00045306,30]
[407785050,1772797888053,-150.0,0.00045306,120]
[407785051,1772797888062,-150.0,0.00045317,30]
[407785052,1772797888073,-159.49661076,0.00045321,30]
[407785053,1772797888082,-178.56416906,0.00045321,30]
[407785054,1772797888092,-237.39121081,0.00045321,30]
[407785055,1772797888102,-259.39398879,0.00045321,30]
[407785056,1772797888111,-496.10721813,0.00045321,30]
[407785057,1772797888120,-196.401106,0.00045321,30]
[407785058,1772797888129,-150.0,0.00045335,30]
[407785059,1772797888139,-150.0,0.00045347,30]
[407785060,1772797888148,-150.0,0.00045347,30]
[407785061,1772797888158,-150.0,0.00045356,30]
[407785062,1772797888167,-162.11,0.00045358,120]
[407785063,1772797888177,-150.0,0.00045363,30]
[407785064,1772797888186,-150.0,0.00045363,30]
[407785065,1772797888195,-150.0,0.00045365,120]
[407785066,1772797888204,-150.0,0.00045365,120]
[407785067,1772797888214,-151.0,0.00045368,120]
[407785068,1772797888224,-151.0,0.00045368,120]
[407785069,1772797888234,-160.195127,0.00045368,120]
[407785070,1772797888244,-159.49661076,0.00045369,30]
[407785071,1772797888254,-178.56416906,0.00045369,30]
[407785072,1772797888264,-237.39121081,0.00045369,30]
[407785073,1772797888273,-259.39398879,0.00045369,30]
[407785074,1772797888382,-496.10721813,0.00045369,30]
[407785075,1772797888392,-196.401106,0.00045369,30]
[407785076,1772797888401,-10337.58675131,0.000454,30]
[407785077,1772797888411,-153.0,0.000454,120]
[407785078,1772797888420,-1003.11,0.00045401,120]
[407785079,1772797888429,-150.0,0.00045407,30]
[407785080,1772797888438,-150.0,0.00045408,30]
[407785081,1772797888447,-159.49661076,0.00045416,30]
[407785082,1772797888458,-178.56416906,0.00045416,30]
[407785083,1772797888468,-237.39121081,0.00045416,30]
[407785084,1772797888477,-259.39398879,0.00045416,30]
[407785085,1772797888486,-496.10721813,0.00045416,30]
[407785086,1772797888496,-196.401106,0.00045416,30]
[407785087,1772797888507,-150.0,0.00045419,120]
[407785088,1772797888517,-150.0,0.00045426,120]
[407785089,1772797888528,-150.0,0.00045437,120]
[407785090,1772797888538,-150.0,0.00045447,30]
[407785091,1772797888547,-150.0,0.00045447,30]
[407785092,1772797888557,-150.0,0.00045458,30]
[407785093,1772797888566,-162.11,0.00045458,120]
[407785094,1772797888576,-150.0,0.00045462,120]
[407785095,1772797888586,-159.49661076,0.00045464,30]
[407785096,1772797888596,-178.56416906,0.00045464,30]
[407785097,1772797888606,-237.39121081,0.00045464,30]
[407785098,1772797888615,-259.39398879,0.00045464,30]
[407785099,1772797888624,-496.10721813,0.00045464,30]
[407785100,1772797888635,-196.401106,0.00045464,30]
[407785101,1772797888645,-150.0,0.00045474,30]
[407785102,1772797888656,-150.0,0.00045474,30]
[407785103,1772797888665,-746.0,0.00045479,120]
[407785104,1772797888675,-873.765854,0.00045479,120]
[407785105,1772797888684,-873.765854,0.00045479,120]
[407785106,1772797888693,-873.765854,0.00045479,120]
[407785107,1772797888702,-873.765854,0.00045479,120]
[407785108,1772797888712,-873.765854,0.00045479,120]
[407785109,1772797888722,-873.765854,0.00045479,120]
[407785110,1772797888732,-873.765854,0.00045479,120]
[407785111,1772797888742,-873.765854,0.00045479,120]
[407785112,1772797888753,-873.765854,0.00045479,120]
[407785113,1772797888763,-873.765854,0.00045479,120]
[407785114,1772797888772,-873.765854,0.00045479,120]
[407785115,1772797888781,-873.765854,0.00045479,120]
[407785116,1772797888791,-873.765854,0.00045479,120]
[407785117,1772797888801,-873.765854,0.00045479,120]
[407785118,1772797888811,-873.765854,0.00045479,120]
[407785119,1772797888820,-873.765854,0.00045479,120]
[407785120,1772797888829,-500.0,0.0004548,120]
[407785121,1772797888838,-3000.0,0.00045486,60]
[407785122,1772797888847,-150.0,0.00045499,30]
[407785123,1772797888856,-500.0,0.000455,120]
[407785124,1772797888865,-299.0,0.000455,120]
[407785125,1772797888875,-150.0,0.00045508,30]
[407785126,1772797888885,-159.49661076,0.00045511,30]
[407785127,1772797888894,-178.56416906,0.00045511,30]
[407785128,1772797888904,-237.39121081,0.00045511,30]
[407785129,1772797888913,-259.39398879,0.00045511,30]
[407785130,1772797888923,-496.10721813,0.00045511,30]
[407785131,1772797888934,-196.401106,0.00045511,30]
[407785132,1772797888944,-155.78413789,0.0004552,2]
[407785133,1772797888954,-150.0,0.00045531,30]
[407785134,1772797888966,-158.34503394,0.0004555,120]
[407785135,1772797888975,-162.11,0.00045558,120]
[407785136,1772797888984,-150.0,0.00045559,30]
[407785137,1772797888995,-159.49661076,0.00045559,30]
[407785138,1772797889006,-178.56416906,0.00045559,30]
[407785139,1772797889015,-237.39121081,0.00045559,30]
[407785140,1772797889025,-259.39398879,0.00045559,30]
[407785141,1772797889036,-496.10721813,0.00045559,30]
[407785142,1772797889048,-196.401106,0.00045559,30]
[407785143,1772797889059,-150.0,0.00045559,30]
[407785144,1772797889068,-150.0,0.00045559,30]
[407785145,1772797889077,-150.0,0.00045559,30]
[407785146,1772797889088,-150.0,0.00045588,120]
[407785147,1772797889097,-150.0,0.00045589,30]
[407785148,1772797889106,-368.91,0.000456,120]
[407785149,1772797889116,-152.08,0.000456,120]
[407785150,1772797889125,-1055.81,0.000456,120]
[407785151,1772797889134,-1043.53,0.000456,120]
[407785152,1772797889144,-5846.56,0.000456,120]
[407785153,1772797889154,-150.0,0.00045601,30]
[407785154,1772797889164,-150.0,0.00045601,30]
[407785155,1772797889174,-159.49661076,0.00045607,30]
[407785156,1772797889184,-178.56416906,0.00045607,30]
[407785157,1772797889194,-237.39121081,0.00045607,30]
[407785158,1772797889203,-259.39398879,0.00045607,30]
[407785159,1772797889214,-496.10721813,0.00045607,30]
[407785160,1772797889223,-196.401106,0.00045607,30]
[407785161,1772797889233,-150.0,0.0004561,30]
[407785162,1772797889243,-150.0,0.00045615,30]
[407785163,1772797889253,-159.49661076,0.00045654,30]
[407785164,1772797889262,-178.56416906,0.00045654,30]
[407785165,1772797889272,-237.39121081,0.00045654,30]
[407785166,1772797889285,-259.39398879,0.00045654,30]
[407785167,1772797889294,-496.10721813,0.00045654,30]
[407785168,1772797889305,-196.401106,0.00045654,30]
[407785169,1772797889314,-2691.09483055,0.00045655,2]
[407785170,1772797889324,-150.0,0.00045657,30]
[407785171,1772797889333,-162.11,0.00045658,120]
[407785172,1772797889343,-150.0,0.0004566,30]
[407785173,1772797889353,-150.0,0.00045666,120]
[407785174,1772797889363,-150.0,0.00045671,30]
[407785175,1772797889374,-150.0,0.0004568,30]
[407785176,1772797889384,-150.0,0.00045699,30]
[407785177,1772797889394,-264.28279922,0.000457,120]
[407785178,1772797889404,-389.55,0.000457,120]
[407785179,1772797889413,-201.53,0.000457,120]
[407785180,1772797889422,-993.0,0.000457,120]
[407785181,1772797889432,-159.49661076,0.00045702,30]
[407785182,1772797889442,-178.56416906,0.00045702,30]
[407785183,1772797889452,-237.39121081,0.00045702,30]
[407785184,1772797889463,-259.39398879,0.00045702,30]
[407785185,1772797889474,-496.10721813,0.00045702,30]
[407785186,1772797889485,-196.401106,0.00045702,30]
[407785187,1772797889495,-150.0,0.00045711,30]
[407785188,1772797889505,-150.0,0.00045729,30]
[407785189,1772797889516,-150.0,0.00045729,30]
[407785190,1772797889527,-159.49661076,0.00045749,30]
[407785191,1772797889538,-178.56416906,0.00045749,30]
[407785192,1772797889548,-237.39121081,0.00045749,30]
[407785193,1772797889558,-259.39398879,0.00045749,30]
[407785194,1772797889568,-496.10721813,0.00045749,30]
[407785195,1772797889577,-196.401106,0.00045749,30]
[407785196,1772797889587,-746.0,0.00045753,120]
[407785197,1772797889596,-500.0,0.00045754,120]
[407785198,1772797889607,-162.11,0.00045758,120]
[407785199,1772797889615,-1200.0,0.0004576,60]
[407785200,1772797889626,-3000.0,0.0004576,60]
[407785201,1772797889636,-150.0,0.00045762,30]
[407785202,1772797889645,-150.0,0.00045766,120]
[407785203,1772797889654,-150.0,0.0004577,30]
[407785204,1772797889665,-150.0,0.00045783,30]
[407785205,1772797889675,-150.0,0.00045783,30]
[407785206,1772797889685,-155.78413789,0.00045794,2]
[407785207,1772797889694,-159.49661076,0.00045797,30]
[407785208,1772797889706,-178.56416906,0.00045797,30]
[407785209,1772797889716,-237.39121081,0.00045797,30]
[407785210,1772797889726,-259.39398879,0.00045797,30]
[407785211,1772797889736,-496.10721813,0.00045797,30]
[407785212,1772797889746,-196.401106,0.00045797,30]
[407785213,1772797889755,-561.29,0.000458,120]
[407785214,1772797889764,-461.13,0.000458,120]
[407785215,1772797889774,-150.0,0.00045812,30]
[407785216,1772797889784,-725.1521,0.00045813,2]
[407785217,1772797889795,-1000.0,0.00045822,2]
[407785218,1772797889805,-159.49661076,0.00045845,30]
[407785219,1772797889815,-178.56416906,0.00045845,30]
[407785220,1772797889825,-237.39121081,0.00045845,30]
[407785221,1772797889834,-259.39398879,0.00045845,30]
[407785222,1772797889844,-496.10721813,0.00045845,30]
[407785223,1772797889854,-196.401106,0.00045845,30]
[407785224,1772797889863,-150.0,0.00045856,30]
[407785225,1772797889873,-150.0,0.00045856,30]
[407785226,1772797889882,-162.11,0.00045858,120]
[407785227,1772797889891,-150.0,0.00045861,30]
[407785228,1772797889901,-150.0,0.00045863,30]
[407785229,1772797889911,-150.0,0.00045868,30]
[407785230,1772797889922,-159.49661076,0.00045892,30]
[407785231,1772797889932,-178.56416906,0.00045892,30]
[407785232,1772797889941,-237.39121081,0.00045892,30]
[407785233,1772797889951,-259.39398879,0.00045892,30]
[407785234,1772797889964,-496.10721813,0.00045892,30]
[407785235,1772797889974,-196.401106,0.00045892,30]
[407785236,1772797889983,-150.0,0.00045896,30]
[407785237,1772797889994,-11378.63,0.00045904,8]
[407785238,1772797890003,-150.0,0.00045908,120]
[407785239,1772797890013,-150.0,0.00045914,30]
[407785240,1772797890022,-150.0,0.00045914,120]
[407785241,1772797890032,-500.0,0.0004593,120]
[407785242,1772797890042,-150.0,0.00045931,120]
[407785243,1772797890052,-159.49661076,0.0004594,30]
[407785244,1772797890061,-178.56416906,0.0004594,30]
[407785245,1772797890071,-237.39121081,0.0004594,30]
[407785246,1772797890081,-259.39398879,0.0004594,30]
[407785247,1772797890090,-496.10721813,0.0004594,30]
[407785248,1772797890100,-196.401106,0.0004594,30]
[407785249,1772797890109,-150.0,0.00045943,120]
[407785250,1772797890118,-162.28289634,0.00045943,120]
[407785251,1772797890128,-150.0,0.00045952,30]
[407785252,1772797890138,-150.0,0.00045952,30]
[407785253,1772797890147,-150.0,0.00045952,30]
[407785254,1772797890157,-150.0,0.00045952,30]
[407785255,1772797890166,-162.11,0.00045958,120]
[407785256,1772797890176,-150.0,0.00045964,30]
[407785257,1772797890185,-5834.93531755,0.00045967,111]
[407785258,1772797890195,-150.0,0.00045984,30]
[407785259,1772797890205,-150.0,0.00045984,30]
[407785260,1772797890215,-159.49661076,0.00045987,30]
[407785261,1772797890224,-178.56416906,0.00045987,30]
[407785262,1772797890234,-237.39121081,0.00045987,30]
[407785263,1772797890243,-259.39398879,0.00045987,30]
[407785264,1772797890253,-496.10721813,0.00045987,30]
[407785265,1772797890263,-196.401106,0.00045987,30]
[407785266,1772797890272,-151.0,0.00045996,120]
[407785267,1772797890282,-7745.9954519,0.00045999,2]
[407785268,1772797890291,-22254.0045481,0.00045999,2]